bitfinex-derivatives/quotes_SOLF0:USTF0_20250319
["timestamp","ask_amount","ask_price","bid_price","bid_amount"]
[1742345922167,50.0961347,125.79,125.78,0.05374863]
[1742345922463,7.9528,125.77,125.74,2.0835]
[1742345922663,29.08,125.76,125.74,2.0835]
[1742345923370,37.0332,125.76,125.74,2.0835]
[1742345923570,37.0942412,125.76,125.74,2.14443279]
[1742345925076,29.1410412,125.76,125.74,10.09853279]
[1742345926273,37.0941412,125.76,125.74,2.14443279]
[1742345926966,29.1410412,125.76,125.74,10.09873279]
[1742345927373,29.1410412,125.76,125.74,2.14443279]
[1742345927574,29.1410412,125.76,125.75,7.9537]
[1742345927774,29.1410412,125.76,125.74,2.14443279]
[1742345928177,29.1410412,125.76,125.75,7.9537]
[1742345929472,29.1410412,125.76,125.74,10.09843279]
[1742345932276,0.0610412,125.76,125.75,7.9537]
[1742345932481,42.1450347,125.8,125.75,13.0650347]
[1742345932974,50.0956347,125.8,125.75,13.0650347]
[1742345933579,0.06086417,125.79,125.76,0.06069278]
[1742345934880,0.06086417,125.79,125.77,7.9522]
[1742345935077,0.06086417,125.79,125.76,0.06069278]
[1742345935271,13.12589887,125.79,125.76,0.06069278]
[1742345935484,13.12589887,125.79,125.76,8.01339278]
[1742345936183,50.15709887,125.79,125.76,8.01339278]
[1742345937386,42.20589887,125.79,125.77,7.9523]
[1742345938682,29.14086417,125.79,125.78,7.9518]
[1742345939083,0.06086417,125.79,125.78,7.9518]
[1742345939376,0.06086417,125.79,125.78,21.0168347]
[1742345940385,0.06086417,125.79,125.78,7.9518]
[1742345941091,0.06086417,125.79,125.78,21.0168347]
[1742345941989,29.08,125.83,125.81,7.9496]
[1742345942189,15.2007347,125.86,125.81,13.0650347]
[1742345942488,42.1450347,125.86,125.83,7.9483]
[1742345943081,42.19730572,125.86,125.83,8.00764755]
[1742345943281,50.14420572,125.86,125.83,8.00764755]
[1742345943589,13.0650347,125.85,125.83,8.00764755]
[1742345945984,42.1250347,125.85,125.83,8.00764755]
[1742345946990,13.0650347,125.85,125.83,8.00764755]
[1742345947195,29.06,125.85,125.83,8.00764755]
[1742345948597,50.0724347,125.85,125.83,0.05934755]
[1742345949195,42.1250347,125.85,125.83,0.05934755]
[1742345949392,42.1250347,125.85,125.83,8.00784755]
[1742345950189,29.06,125.85,125.84,7.948]
[1742345950495,0.05227102,125.86,125.83,13.12438225]
[1742345950696,0.05227102,125.86,125.85,7.9473]
[1742345951199,0.05227102,125.86,125.84,7.9478]
[1742345951399,0.05227102,125.86,125.83,0.05934755]
[1742345951802,0.05227102,125.86,125.83,8.00764755]
[1742345952395,0.05227102,125.86,125.84,7.9479]
[1742345953390,0.05227102,125.86,125.85,7.9473]
[1742345954603,42.1250347,125.9,125.87,7.9459]
[1742345955486,42.1250347,125.9,125.86,13.0650347]
[1742345955691,29.06,125.9,125.86,13.0650347]
[1742345955899,0.05944827,125.89,125.87,0.05181978]
[1742345956099,0.05944827,125.89,125.88,7.945]
[1742345958105,42.1250347,125.93,125.9,7.9437]
[1742345958500,13.0650347,125.92,125.9,7.9437]
[1742345959201,0.05929072,125.92,125.9,13.12186235]
[1742345959798,0.05929072,125.92,125.91,13.0650347]
[1742345959997,13.0650347,125.96,125.91,13.0650347]
[1742345960198,21.0061347,125.95,125.91,21.0080347]
[1742345960410,13.0650347,125.95,125.91,13.0650347]
[1742345960608,2.0,126.0,125.93,13.0650347]
[1742345960806,21.0055347,125.96,125.92,7.9424]
[1742345961101,50.0455347,125.96,125.92,7.9424]
[1742345961310,0.05181884,125.95,125.93,0.05934045]
[1742345963311,13.0650347,125.94,125.93,0.05934045]
[1742345964011,0.05181884,125.95,125.93,0.05934045]
[1742345964314,13.0650347,125.94,125.93,0.05934045]
[1742345965601,21.05825354,125.95,125.93,0.05934045]
[1742345966013,0.05181884,125.95,125.93,0.05934045]
[1742345966307,13.11685354,125.95,125.93,0.05934045]
[1742345966510,13.0650347,125.94,125.93,0.05934045]
[1742345972814,21.0067347,125.94,125.93,0.05934045]
[1742345973316,15.1612347,125.94,125.87,15.0607347]
[1742345973610,21.0086347,125.91,125.87,1.9957]
[1742345974113,21.0082347,125.92,125.87,15.0607347]
[1742345974416,0.05398559,125.9,125.88,13.12601559]
[1742345975397,0.05398559,125.9,125.89,7.9448]
[1742345980707,0.05398559,125.9,125.88,8.00618089]
[1742345981516,0.05398559,125.9,125.89,7.9448]
[1742345985221,0.05398559,125.9,125.88,8.00628089]
[1742345985512,42.13902029,125.9,125.88,0.06098089]
[1742345985705,13.0650347,125.89,125.88,0.06098089]
[1742345986418,21.0098347,125.89,125.88,0.06098089]
[1742345987018,13.0650347,125.89,125.88,0.06098089]
[1742345987916,50.08352029,125.9,125.88,0.06098089]
[1742345988514,29.07398559,125.9,125.88,8.00638089]
[1742345989523,37.01818559,125.9,125.88,0.06098089]
[1742345990217,50.08322029,125.9,125.88,0.06098089]
[1742345990416,7.9448,125.89,125.88,0.06098089]
[1742345991009,21.0098347,125.89,125.88,0.06098089]
[1742345997426,7.9448,125.89,125.88,0.06098089]
[1742346000228,21.0098347,125.89,125.88,0.06098089]
[1742346000426,7.9463,125.87,125.83,15.0538347]
[1742346000619,29.02,125.86,125.83,15.0538347]
[1742346000819,29.02,125.86,125.84,7.9477]
[1742346001022,29.02,125.86,125.83,15.0538347]
[1742346001228,29.02,125.88,125.85,13.0650347]
[1742346001423,29.02,125.88,125.86,7.9462]
[1742346001726,29.07130904,125.88,125.86,7.9462]
[1742346002427,29.07130904,125.88,125.85,13.12205429]
[1742346002817,29.07130904,125.88,125.85,0.05701959]
[1742346003019,29.07130904,125.88,125.86,7.9464]
[1742346003331,29.07130904,125.88,125.85,0.05701959]
[1742346003526,29.07130904,125.88,125.86,7.9467]
[1742346004727,29.07130904,125.88,125.85,13.12205429]
[1742346005332,29.07130904,125.88,125.87,21.0111347]
[1742346005533,0.05130904,125.88,125.87,21.0111347]
[1742346006932,29.02,125.92,125.91,7.9435]
[1742346007326,10.0381,125.94,125.91,7.9435]
[1742346007327,13.0650347,125.94,125.91,7.9435]
[1742346007532,29.02,125.93,125.91,7.9435]
[1742346008030,13.0650347,125.92,125.91,0.05216629]
[1742346009533,42.0850347,125.92,125.91,0.05216629]
[1742346010434,50.0279347,125.92,125.91,0.05216629]
[1742346010625,42.0850347,125.92,125.91,0.05216629]
[1742346011131,29.02,125.92,125.91,0.05216629]
[1742346011331,29.02,125.92,125.91,7.99576629]
[1742346012932,0.05263199,125.93,125.92,7.9429]
[1742346018026,0.05263199,125.93,125.92,21.0079347]
[1742346018639,13.0650347,125.99,125.96,7.9404]
[1742346018829,29.02,125.97,125.96,7.9404]
[1742346019334,29.02,125.97,125.95,7.9408]
[1742346019733,29.08047113,125.97,125.95,7.99703128]
[1742346019931,0.06047113,125.97,125.96,7.9404]
[1742346022036,0.06047113,125.97,125.95,0.05623128]
[1742346022436,50.0254347,125.96,125.95,0.05623128]
[1742346027246,42.0850347,125.96,125.88,4.0118]
[1742346027538,13.0650347,125.92,125.88,4.0118]
[1742346027742,42.0850347,125.92,125.88,4.0118]
[1742346027943,50.0283347,125.92,125.89,7.9444]
[1742346028146,42.0850347,125.92,125.88,4.0118]
[1742346028346,42.0850347,125.92,125.89,0.05091813]
[1742346028347,42.1393374,125.92,125.89,0.05091813]
[1742346028740,50.0826374,125.92,125.89,7.99541813]
[1742346029142,42.1393374,125.92,125.89,0.05091813]
[1742346029342,21.0089347,125.91,125.89,0.05091813]
[1742346029740,29.0743027,125.92,125.89,13.11595283]
[1742346029948,42.1393374,125.92,125.89,0.05091813]
[1742346030648,29.0743027,125.92,125.89,0.05091813]
[1742346031051,29.0743027,125.92,125.9,7.9438]
[1742346034153,29.0743027,125.92,125.91,7.9436]
[1742346038350,29.0743027,125.92,125.9,21.0089347]
[1742346038555,29.0743027,125.92,125.89,13.11595283]
[1742346039754,29.0743027,125.92,125.9,7.9438]
[1742346043064,29.0743027,125.92,125.89,7.99541813]
[1742346043273,42.1393374,125.92,125.89,0.05091813]
[1742346043475,13.0650347,125.91,125.89,0.05091813]
[1742346043671,13.0650347,125.9,125.89,0.05091813]
[1742346044075,21.0092347,125.9,125.89,0.05091813]
[1742346044274,13.0650347,125.9,125.85,18.93290302]
[1742346044475,13.0650347,125.88,125.85,18.93290302]
[1742346044677,21.0105347,125.88,125.85,18.93290302]
[1742346045072,13.0650347,125.88,125.85,18.93290302]
[1742346045378,0.06013823,125.88,125.86,7.9463]
[1742346047179,0.06013823,125.88,125.85,13.11649704]
[1742346048579,0.06013823,125.88,125.87,7.9461]
[1742346048774,0.06013823,125.88,125.87,21.0111347]
[1742346049171,29.02,125.91,125.87,13.0650347]
[1742346049476,29.02,125.91,125.88,13.0650347]
[1742346049782,29.02,125.91,125.87,13.0650347]
[1742346049976,29.02,125.91,125.9,7.9442]
[1742346055578,0.05838857,125.92,125.91,7.9436]
[1742346055778,29.05838857,125.92,125.91,7.9436]
[1742346065289,42.12342327,125.92,125.9,7.944]
[1742346069992,13.0650347,125.91,125.88,0.05680488]
[1742346070195,13.0650347,125.89,125.88,0.05680488]
[1742346070490,42.0650347,125.89,125.88,0.05680488]
[1742346071090,29.0,125.89,125.88,0.05680488]
[1742346073395,36.9448,125.89,125.88,0.05680488]
[1742346073894,50.0098347,125.89,125.88,0.05680488]
[1742346075492,42.0650347,125.89,125.88,0.05680488]
[1742346077294,50.0098347,125.89,125.88,0.05680488]
[1742346079999,7.9464,125.87,125.83,15.1895347]
[1742346080201,29.0,125.86,125.83,15.1895347]
[1742346080797,29.0,125.86,125.84,7.9477]
[1742346081100,50.068259,125.86,125.84,0.05137171]
[1742346081599,13.0650347,125.85,125.84,0.05137171]
[1742346083802,21.0123347,125.85,125.84,0.05137171]
[1742346084099,21.0123347,125.85,125.81,7.9494]
[1742346084100,21.0123347,125.85,125.8,306.0840121]
[1742346084299,13.0650347,125.84,125.82,7.9492]
[1742346084501,29.0,125.83,125.82,7.9492]
[1742346087604,29.0,125.83,125.81,7.99999366]
[1742346087798,13.0650347,125.82,125.81,0.05049366]
[1742346088004,42.1157234,125.83,125.81,0.05049366]
[1742346088403,13.0650347,125.82,125.81,0.05049366]
[1742346088800,21.0142347,125.82,125.81,0.05049366]
[1742346090314,13.0650347,125.82,125.81,0.05049366]
[1742346092912,42.1157234,125.83,125.81,0.05049366]
[1742346094111,13.1157234,125.83,125.81,0.05049366]
[1742346094313,29.02,125.82,125.81,0.05049366]
[1742346095710,29.02,125.82,125.81,8.00039366]
[1742346096714,29.02,125.82,125.81,0.05049366]
[1742346097306,42.0850347,125.82,125.81,0.05049366]
[1742346097805,50.0342347,125.82,125.81,0.05049366]
[1742346098008,42.0850347,125.82,125.76,2.0276]
[1742346098208,13.0650347,125.8,125.76,2.0276]
[1742346098416,29.02,125.79,125.76,2.0276]
[1742346098711,42.0850347,125.79,125.76,2.0276]
[1742346098914,42.0850347,125.79,125.75,2.187]
[1742346099214,42.0850347,125.79,125.76,8.01282885]
[1742346099215,42.13611555,125.79,125.76,8.01282885]
[1742346099616,13.0650347,125.78,125.76,0.06032885]
[1742346100116,13.0650347,125.77,125.76,0.06032885]
[1742346103016,37.02238085,125.79,125.76,8.01332885]
[1742346103322,42.13611555,125.79,125.76,8.01332885]
[1742346104318,50.08761555,125.79,125.76,8.01332885]
[1742346105420,50.08761555,125.79,125.76,0.06032885]
[1742346105818,21.0169347,125.78,125.76,0.06032885]
[1742346106010,29.02,125.77,125.76,0.06032885]
[1742346109418,36.9724,125.77,125.76,0.06032885]
[1742346110011,50.0374347,125.77,125.76,0.06032885]
[1742346112326,29.02,125.77,125.76,0.06032885]
[1742346118336,43.50491735,125.77,125.76,0.06032885]
[1742346118542,50.0374347,125.77,125.76,0.06032885]
[1742346118839,7.9542,125.75,125.72,9.9996]
[1742346119039,29.02,125.74,125.72,7.9552]
[1742346119338,50.0393347,125.74,125.71,2.1647]
[1742346119546,50.0393347,125.74,125.71,10.1206]
[1742346120043,50.09130603,125.74,125.71,10.1779913]
[1742346120243,7.955,125.73,125.71,0.0573913]
[1742346120840,50.09160603,125.74,125.71,0.0573913]
[1742346121148,42.13700603,125.74,125.71,0.0573913]
[1742346121347,7.955,125.73,125.71,0.0573913]
[1742346122048,21.0200347,125.73,125.71,0.0573913]
[1742346122748,29.07197133,125.74,125.72,13.0650347]
[1742346122949,29.07197133,125.74,125.73,13.0650347]
[1742346123145,0.05197133,125.74,125.73,13.0650347]
[1742346123347,0.05197133,125.74,125.73,21.0199347]
[1742346123741,29.02,125.76,125.73,13.0650347]
[1742346123950,29.02,125.76,125.75,7.9537]
[1742346125847,0.06112029,125.77,125.74,13.11561335]
[1742346126049,29.08112029,125.77,125.74,13.11561335]
[1742346126446,29.08112029,125.77,125.75,7.9532]
[1742346126955,42.14615499,125.77,125.75,7.9532]
[1742346127249,42.14615499,125.77,125.74,0.05057865]
[1742346127454,29.08112029,125.77,125.74,0.05057865]
[1742346128050,29.08112029,125.77,125.75,7.9532]
[1742346128255,29.08112029,125.77,125.74,0.05057865]
[1742346128646,29.08112029,125.77,125.76,7.953]
[1742346132058,0.06112029,125.77,125.76,7.953]
[1742346139458,0.06112029,125.77,125.76,21.0180347]
[1742346140562,0.06112029,125.77,125.76,7.953]
[1742346141459,0.06112029,125.77,125.76,21.0180347]
[1742346142961,0.06112029,125.77,125.75,7.9534]
[1742346143353,0.06112029,125.77,125.74,0.05057865]
[1742346143654,0.06112029,125.77,125.74,13.11561335]
[1742346143855,0.06112029,125.77,125.75,7.9531]
[1742346144358,0.06112029,125.77,125.74,13.11561335]
[1742346144559,0.06112029,125.77,125.76,7.953]
[1742346146761,0.06112029,125.77,125.75,7.9534]
[1742346147763,0.06112029,125.77,125.74,13.11561335]
[1742346148464,0.06112029,125.77,125.76,7.953]
[1742346153970,0.06112029,125.77,125.75,7.9535]
[1742346156073,29.02,125.76,125.74,0.05057865]
[1742346156476,13.0650347,125.75,125.74,0.05057865]
[1742346157176,21.0187347,125.75,125.74,0.05057865]
[1742346160578,50.0382347,125.76,125.74,0.05057865]
[1742346160965,7.9537,125.75,125.74,0.05057865]
[1742346161776,21.0187347,125.75,125.74,0.05057865]
[1742346162272,7.9556,125.72,125.69,24.9978347]
[1742346162470,29.02,125.72,125.69,17.0406347]
[1742346162772,29.02,125.72,125.69,23.0079347]
[1742346162977,29.02,125.72,125.69,9.9429]
[1742346163470,36.9756,125.72,125.69,9.9429]
[1742346163672,37.03169234,125.72,125.69,9.99577872]
[1742346164071,7.9562,125.71,125.69,0.05287872]
[1742346165370,21.0212347,125.71,125.69,0.05287872]
[1742346165571,13.0650347,125.71,125.69,0.05287872]
[1742346165772,13.0650347,125.71,125.69,8.01017872]
[1742346166478,42.14112704,125.72,125.7,7.9566]
[1742346166677,29.07609234,125.72,125.7,7.9566]
[1742346168880,29.07609234,125.72,125.71,7.9562]
[1742346169083,29.07609234,125.72,125.69,13.11791342]
[1742346169578,29.07609234,125.72,125.7,7.9563]
[1742346169775,0.05609234,125.72,125.71,13.0650347]
[1742346170880,0.05609234,125.72,125.71,21.0212347]
[1742346171980,0.05609234,125.72,125.71,7.9562]
[1742346183292,0.05609234,125.72,125.71,21.0212347]
[1742346183687,29.02,125.74,125.73,7.9549]
[1742346183880,29.02,125.75,125.72,13.0650347]
[1742346184886,29.07353332,125.75,125.74,7.9543]
[1742346189089,29.05353332,125.75,125.74,7.9543]
[1742346195806,0.05353332,125.75,125.74,7.9543]
[1742346196801,4.2218,125.8,125.74,7.9543]
[1742346196802,359.0,125.85,125.74,13.0650347]
[1742346197103,13.0650347,125.77,125.71,264.5763]
[1742346197308,13.0650347,125.76,125.74,7.9537]
[1742346197507,42.0650347,125.76,125.74,7.9537]
[1742346198008,42.12054855,125.76,125.74,8.00651521]
[1742346198905,42.12054855,125.76,125.74,0.05281521]
[1742346199803,29.05551385,125.76,125.74,0.05281521]
[1742346200007,50.07374855,125.76,125.74,0.05281521]
[1742346202512,7.9537,125.75,125.74,0.05281521]
[1742346202712,21.0187347,125.75,125.74,0.05281521]
[1742346207910,21.0187347,125.75,125.67,26.22963772]
[1742346207911,7.9559,125.72,125.67,26.22963772]
[1742346208111,42.0650347,125.71,125.67,26.22963772]
[1742346208318,29.0,125.7,125.67,26.22963772]
[1742346209014,29.0,125.7,125.67,11.04068595]
[1742346209015,13.0650347,125.69,125.67,11.04068595]
[1742346209211,13.0650347,125.68,125.67,11.04068595]
[1742346210115,13.0650347,125.68,125.67,0.05468293]
[1742346213018,13.0650347,125.69,125.67,8.01338293]
[1742346214126,13.0650347,125.69,125.67,0.05468293]
[1742346215626,13.0650347,125.68,125.67,0.05468293]
[1742346217817,21.0231347,125.68,125.67,0.05468293]
[1742346218018,13.0650347,125.68,125.63,2.0755]
[1742346218315,13.0650347,125.66,125.63,10.0364]
[1742346218513,29.0,125.65,125.63,10.0364]
[1742346219126,29.05291049,125.65,125.63,10.0903719]
[1742346220729,29.05291049,125.65,125.63,8.0148719]
[1742346221132,29.05291049,125.65,125.64,7.9606]
[1742346224432,42.11794519,125.65,125.63,0.0539719]
[1742346224626,13.0650347,125.64,125.63,0.0539719]
[1742346225133,13.0650347,125.64,125.63,8.0152719]
[1742346225326,42.11794519,125.65,125.63,0.0539719]
[1742346225719,42.11794519,125.65,125.64,7.9606]
[1742346226033,29.05291049,125.65,125.64,7.9606]
[1742346227025,42.11794519,125.65,125.64,7.9606]
[1742346227727,29.05291049,125.65,125.64,7.9606]
[1742346232540,0.05291049,125.65,125.64,21.0256347]
[1742346232740,42.0650347,125.69,125.67,7.9586]
[1742346233831,42.12059548,125.69,125.67,8.01236694]
[1742346235240,42.12059548,125.69,125.68,7.9581]
[1742346235842,13.12059548,125.69,125.68,7.9581]
[1742346236141,42.12059548,125.69,125.68,7.9581]
[1742346236642,42.12059548,125.69,125.67,8.01226694]
[1742346236844,13.0650347,125.68,125.67,8.01226694]
[1742346238336,13.0650347,125.68,125.67,0.05376694]
[1742346238839,21.0231347,125.68,125.67,0.05376694]
[1742346239742,21.0231347,125.68,125.63,7.961]
[1742346239743,7.9593,125.67,125.63,7.961]
[1742346239944,13.0650347,125.65,125.63,7.961]
[1742346240344,13.0650347,125.65,125.62,7.9617]
[1742346240742,13.11745979,125.65,125.62,8.0181132]
[1742346241247,13.11745979,125.65,125.63,7.9612]
[1742346241741,0.05242509,125.65,125.64,7.9606]
[1742346245149,42.0650347,125.68,125.64,13.0650347]
[1742346245343,42.0650347,125.68,125.63,13.0650347]
[1742346245751,42.0650347,125.68,125.65,7.9595]
[1742346245939,13.0650347,125.68,125.63,13.0650347]
[1742346246140,42.0650347,125.68,125.63,13.0650347]
[1742346246343,0.05533147,125.67,125.65,7.96]
[1742346246849,0.05533147,125.67,125.66,7.9594]
[1742346251364,0.05533147,125.67,125.65,7.9597]
[1742346261277,21.07916617,125.67,125.64,8.01882425]
[1742346262572,13.0650347,125.66,125.64,0.05842425]
[1742346263677,7.96,125.65,125.64,0.05842425]
[1742346263978,50.0250347,125.65,125.64,0.05842425]
[1742346264777,7.9619,125.62,125.61,10.98600302]
[1742346265080,50.0269347,125.62,125.61,10.98600302]
[1742346267279,7.9625,125.61,125.6,0.05411767]
[1742346267485,21.0275347,125.61,125.6,0.05411767]
[1742346269280,13.0650347,125.61,125.6,0.05411767]
[1742346270780,42.0650347,125.62,125.6,0.05411767]
[1742346272180,13.0650347,125.61,125.6,0.05411767]
[1742346273790,21.0275347,125.61,125.6,0.05411767]
[1742346275288,13.0650347,125.61,125.6,0.05411767]
[1742346276693,13.0650347,125.61,125.6,8.01731767]
[1742346277396,13.0650347,125.61,125.6,0.05411767]
[1742346279192,21.0275347,125.61,125.6,0.05411767]
[1742346287899,13.0650347,125.61,125.55,4.1642]
[1742346288089,13.0650347,125.57,125.55,2.1767]
[1742346288291,42.0650347,125.56,125.5,15.0921347]
[1742346288489,42.0650347,125.55,125.52,7.9682]
[1742346288898,13.0650347,125.54,125.5,4.1874]
[1742346289190,13.0650347,125.54,125.52,0.05577324]
[1742346290595,13.0650347,125.54,125.52,8.02397324]
[1742346291498,13.0650347,125.54,125.53,7.9676]
[1742346291690,13.0650347,125.54,125.52,0.05577324]
[1742346292091,13.0650347,125.54,125.52,8.02377324]
[1742346292799,29.05046121,125.55,125.52,0.05577324]
[1742346293301,29.05046121,125.55,125.53,7.9672]
[1742346293900,42.11549591,125.55,125.53,7.9672]
[1742346295805,42.11549591,125.55,125.52,0.05577324]
[1742346296602,29.05046121,125.55,125.52,13.12080794]
[1742346301407,29.05046121,125.55,125.54,7.967]
[1742346307205,0.05046121,125.55,125.54,7.967]
[1742346307407,0.05046121,125.55,125.54,21.0320347]
[1742346307596,29.0,125.58,125.56,7.9652]
[1742346307801,29.0,125.58,125.54,13.0650347]
[1742346308711,0.05277694,125.57,125.56,7.9657]
[1742346310709,0.05277694,125.57,125.56,21.0307347]
[1742346311008,29.0,125.6,125.59,7.9638]
[1742346315312,42.0650347,125.6,125.59,7.9638]
[1742346315512,42.0650347,125.6,125.58,0.05162256]
[1742346315703,13.0650347,125.59,125.58,0.05162256]
[1742346317814,42.0650347,125.6,125.58,8.01602256]
[1742346323110,29.0,125.6,125.59,7.9638]
[1742346323311,29.0,125.6,125.58,0.05162256]
[1742346323511,42.0650347,125.6,125.58,0.05162256]
[1742346324820,29.0,125.6,125.58,0.05162256]
[1742346325321,13.12523773,125.61,125.59,7.9634]
[1742346325520,42.10523773,125.61,125.59,7.9634]
[1742346325911,42.10523773,125.61,125.6,7.9632]
[1742346326423,0.06020303,125.61,125.6,7.9632]
[1742346327415,0.06020303,125.61,125.58,0.05162256]
[1742346328212,0.06020303,125.61,125.6,7.9632]
[1742346330519,13.12523773,125.61,125.59,7.9635]
[1742346330713,13.12523773,125.61,125.58,0.05162256]
[1742346330908,13.0650347,125.59,125.58,0.05162256]
[1742346331223,42.0450347,125.59,125.58,0.05162256]
[1742346331710,50.0088347,125.59,125.58,0.05162256]
[1742346332617,7.9654,125.57,125.52,15.2096347]
[1742346332823,13.0650347,125.56,125.52,15.2096347]
[1742346333020,42.0450347,125.56,125.52,15.2096347]
[1742346333523,42.0450347,125.56,125.53,7.9672]
[1742346333725,0.05091804,125.55,125.53,8.02644352]
[1742346334724,0.05091804,125.55,125.53,21.09147822]
[1742346334925,0.05091804,125.55,125.54,7.967]
[1742346337121,0.05091804,125.55,125.53,21.09167822]
[1742346337321,0.05091804,125.55,125.53,8.02664352]
[1742346337519,13.11595274,125.55,125.53,0.05924352]
[1742346338119,21.08285274,125.55,125.53,0.05924352]
[1742346338323,13.11595274,125.55,125.53,0.05924352]
[1742346338727,21.08235274,125.55,125.53,0.05924352]
[1742346339424,13.11595274,125.55,125.53,0.05924352]
[1742346340631,21.08235274,125.55,125.53,0.05924352]
[1742346340929,13.0650347,125.54,125.53,0.05924352]
[1742346342318,21.0320347,125.54,125.53,0.05924352]
[1742346343232,13.0650347,125.54,125.47,2.0182]
[1742346343530,13.0650347,125.51,125.47,2.0182]
[1742346343732,28.98,125.5,125.48,7.9707]
[1742346343930,28.98,125.5,125.48,13.0650347]
[1742346344234,28.98,125.5,125.49,7.9701]
[1742346344533,29.03868299,125.5,125.49,7.9701]
[1742346347433,0.05868299,125.5,125.49,7.9701]
[1742346348237,13.12371769,125.5,125.48,0.06067147]
[1742346349032,154.0650347,125.49,125.38,219.2211042]
[1742346349337,154.0650347,125.49,125.38,232.2861389]
[1742346349338,13.0650347,125.43,125.38,232.2861389]
[1742346349532,29.0,125.42,125.39,145.75936764]
[1742346349733,29.0,125.42,125.4,109.50332333]
[1742346349933,29.0,125.42,125.4,101.52792333]
[1742346350236,29.0,125.42,125.4,88.51867032]
[1742346351431,29.0,125.42,125.4,96.49417032]
[1742346352040,29.0,125.42,125.41,52.2066443]
[1742346352536,29.0,125.42,125.41,7.9752]
[1742346354739,29.0,125.42,125.41,21.0402347]
[1742346354942,0.05631481,125.43,125.42,7.9746]
[1742346355136,0.05631481,125.43,125.42,21.0396347]
[1742346355645,29.0,125.46,125.42,13.0650347]
[1742346355844,13.0650347,125.49,125.45,13.0650347]
[1742346355845,29.0,125.47,125.45,13.0650347]
[1742346356245,29.0,125.47,125.46,7.9721]
[1742346357854,29.0,125.47,125.46,21.0371347]
[1742346358348,0.0553807,125.48,125.47,7.9714]
[1742346361357,0.0553807,125.48,125.47,21.0364347]
[1742346362955,8.07e-05,125.48,125.47,21.0364347]
[1742346364753,8.07e-05,125.48,125.47,23.0224347]
[1742346367960,8.07e-05,125.48,125.47,21.0364347]
[1742346368258,8.07e-05,125.48,125.47,7.9714]
[1742346368661,8.07e-05,125.48,125.46,7.9718]
[1742346369162,29.0000807,125.48,125.46,7.9718]
[1742346369863,36.9708807,125.48,125.45,8.03212489]
[1742346370160,50.0359154,125.48,125.45,8.03212489]
[1742346371260,13.0650347,125.47,125.45,0.05972489]
[1742346372056,29.0000807,125.48,125.45,0.05972489]
[1742346372057,21.0371347,125.46,125.45,0.05972489]
[1742346372446,13.0650347,125.46,125.41,7.9749]
[1742346372651,13.0650347,125.44,125.41,7.9749]
[1742346373260,36.9729,125.45,125.41,7.9749]
[1742346373647,0.05598347,125.44,125.42,0.05462162]
[1742346373951,0.05598347,125.44,125.42,8.02902162]
[1742346374150,0.05598347,125.44,125.42,0.05462162]
[1742346374357,0.05598347,125.44,125.43,7.974]
[1742346378370,0.05598347,125.44,125.42,8.02892162]
[1742346378758,0.05598347,125.44,125.43,7.974]
[1742346381169,0.05598347,125.44,125.42,8.02912162]
[1742346382269,0.05598347,125.44,125.43,7.974]
[1742346389162,29.0,125.48,125.47,7.9713]
[1742346389359,29.0,125.48,125.42,49.6015544]
[1742346389765,283.5815544,125.5,125.46,7.9715]
[1742346390069,29.0,125.49,125.46,7.9715]
[1742346390272,29.05094978,125.49,125.47,0.05233917]
[1742346390459,29.0,125.48,125.47,7.9711]
[1742346390663,29.0,125.48,125.47,8.02532106]
[1742346392369,0.05094978,125.49,125.48,7.9708]
[1742346394274,0.05094978,125.49,125.48,21.14011342]
[1742346395561,0.05094978,125.49,125.48,7.9708]
[1742346403269,0.05094978,125.49,125.47,0.05422106]
[1742346403478,0.05094978,125.49,125.47,8.02532106]
[1742346404775,0.05094978,125.49,125.48,7.9708]
[1742346405691,0.05094978,125.49,125.47,8.02532106]
[1742346410578,0.05094978,125.49,125.48,7.9708]
[1742346413488,42.2002632,125.49,125.47,0.05422106]
[1742346413678,13.16931342,125.48,125.47,0.05422106]
[1742346414185,21.14011342,125.48,125.47,0.05422106]
[1742346419094,7.9731,125.45,125.41,4.1288]
[1742346419296,50.12241342,125.45,125.41,4.1288]
[1742346419490,50.12241342,125.45,125.42,7.9746]
[1742346419682,28.98,125.45,125.41,17.29811342]
[1742346420389,0.05933233,125.44,125.42,8.03024741]
[1742346420703,0.05933233,125.44,125.43,7.974]
[1742346420889,0.05933233,125.44,125.43,21.14331342]
[1742346421788,28.98,125.45,125.44,7.9733]
[1742346421986,13.16931342,125.48,125.44,7.9733]
[1742346421987,28.98,125.47,125.44,13.16931342]
[1742346422189,28.98,125.48,125.46,7.9717]